[Event "Titled Tuesday Blitz December 20 Early 2022"]
[White "Goryachkina, Aleksandra"]
[Black "Xiong, Jeffery"]
[WhiteFideId "4147103"]
[BlackFideId "2047640"]
[WhiteElo "2571"]
[BlackElo "2692"]
[Result "1-0"]
[Round "05"]
[TimeControl "180+2"]
[Date "2022.12.20"]
[WhiteClock "0:00:03"]
[BlackClock "0:00:13"]

1. Nf3 {[%clk 0:02:59]}  c5 {[%clk 0:02:56]} 2. c4 {[%clk 0:02:56]}  g6 {[%clk 0:02:54]} 3. Nc3 {[%clk 0:02:50]}  Bg7 {[%clk 0:02:53]} 4. e3 {[%clk 0:02:49]}  Nf6 {[%clk 0:02:53]} 5. d4 {[%clk 0:02:42]}  cxd4 {[%clk 0:02:54]} 6. exd4 {[%clk 0:02:42]}  O-O {[%clk 0:02:54]} 7. d5 {[%clk 0:02:31]}  e6 {[%clk 0:02:54]} 8. Be2 {[%clk 0:02:30]}  exd5 {[%clk 0:02:54]} 9. cxd5 {[%clk 0:02:29]}  Re8 {[%clk 0:02:55]} 10. O-O {[%clk 0:02:28]}  d6 {[%clk 0:02:55]} 11. h3 {[%clk 0:02:23]}  Na6 {[%clk 0:02:55]} 12. Bf4 {[%clk 0:02:21]}  Nc5 {[%clk 0:02:55]} 13. Bb5 {[%clk 0:02:12]}  Re7 {[%clk 0:02:50]} 14. Re1 {[%clk 0:02:04]}  Rxe1+ {[%clk 0:02:50]} 15. Qxe1 {[%clk 0:02:02]}  a6 {[%clk 0:02:51]} 16. Bf1 {[%clk 0:01:59]}  Bf5 {[%clk 0:02:42]} 17. Nd4 {[%clk 0:01:47]}  Nd3 {[%clk 0:02:39]} 18. Bxd3 {[%clk 0:01:46]}  Bxd3 {[%clk 0:02:40]} 19. Qd2 {[%clk 0:01:43]}  Bc4 {[%clk 0:02:40]} 20. Rd1 {[%clk 0:01:28]}  Rc8 {[%clk 0:02:26]} 21. Bg5 {[%clk 0:01:18]}  Qa5 {[%clk 0:02:18]} 22. b3 {[%clk 0:00:22]}  Bxd5 {[%clk 0:01:42]} 23. Bxf6 {[%clk 0:00:19]}  Bxf6 {[%clk 0:01:38]} 24. b4 {[%clk 0:00:18]}  Qxb4 {[%clk 0:01:15]} 25. Nxd5 {[%clk 0:00:18]}  Qxd2 {[%clk 0:01:16]} 26. Rxd2 {[%clk 0:00:19]}  Kg7 {[%clk 0:01:11]} 27. Nxf6 {[%clk 0:00:17]}  Kxf6 {[%clk 0:01:12]} 28. f4 {[%clk 0:00:12]}  h5 {[%clk 0:01:09]} 29. Nf3 {[%clk 0:00:11]}  Ke7 {[%clk 0:01:08]} 30. Kf2 {[%clk 0:00:11]}  Rc4 {[%clk 0:01:08]} 31. Ke3 {[%clk 0:00:10]}  Ra4 {[%clk 0:01:09]} 32. Nd4 {[%clk 0:00:09]}  Kf6 {[%clk 0:01:08]} 33. Ke4 {[%clk 0:00:09]}  h4 {[%clk 0:01:04]} 34. Kd5 {[%clk 0:00:09]}  Ke7 {[%clk 0:01:02]} 35. Rb2 {[%clk 0:00:09]}  b5 {[%clk 0:01:02]} 36. Rc2 {[%clk 0:00:08]}  Kd7 {[%clk 0:01:02]} 37. f5 {[%clk 0:00:06]}  g5 {[%clk 0:00:58]} 38. f6 {[%clk 0:00:06]}  b4 {[%clk 0:00:53]} 39. Nc6 {[%clk 0:00:04]}  a5 {[%clk 0:00:43]} 40. Nb8+ {[%clk 0:00:04]}  Kd8 {[%clk 0:00:42]} 41. Kxd6 {[%clk 0:00:04]}  Ra3 {[%clk 0:00:43]} 42. Nc6+ {[%clk 0:00:04]}  Ke8 {[%clk 0:00:44]} 43. Re2+ {[%clk 0:00:05]}  Kf8 {[%clk 0:00:44]} 44. Ne7 {[%clk 0:00:04]}  a4 {[%clk 0:00:40]} 45. Nd5 {[%clk 0:00:04]}  b3 {[%clk 0:00:40]} 46. axb3 {[%clk 0:00:04]}  axb3 {[%clk 0:00:41]} 47. Rb2 {[%clk 0:00:04]}  Kg8 {[%clk 0:00:40]} 48. Ke5 {[%clk 0:00:04]}  Ra2 {[%clk 0:00:37]} 49. Rxb3 {[%clk 0:00:03]}  Rxg2 {[%clk 0:00:38]} 50. Kf5 {[%clk 0:00:03]}  Rd2 {[%clk 0:00:20]} 51. Ne3 {[%clk 0:00:03]}  Kh7 {[%clk 0:00:15]} 52. Kxg5 {[%clk 0:00:02]}  Rh2 {[%clk 0:00:13]} 53. Ng4 {[%clk 0:00:03]} 1-0


[Site "https://www.chess.com"]

[Event "Titled Tuesday Blitz December 20 Early 2022"]
[White "GregLeBarbare"]
[Black "aidenzhouu"]
[WhiteElo "2242"]
[BlackElo "2386"]
[Result "0-1"]
[Round "05"]
[TimeControl "180+2"]
[Date "2022.12.20"]
[WhiteClock "0:01:00"]
[BlackClock "0:01:20"]

1. d4 {[%clk 0:03:00]}  Nf6 {[%clk 0:02:58]} 2. Bf4 {[%clk 0:03:00]}  g6 {[%clk 0:02:56]} 3. Nf3 {[%clk 0:03:00]}  Bg7 {[%clk 0:02:57]} 4. e3 {[%clk 0:03:01]}  O-O {[%clk 0:02:57]} 5. Be2 {[%clk 0:03:01]}  d6 {[%clk 0:02:57]} 6. h3 {[%clk 0:03:02]}  Nfd7 {[%clk 0:02:58]} 7. Bh2 {[%clk 0:03:01]}  Nc6 {[%clk 0:02:58]} 8. O-O {[%clk 0:03:00]}  e5 {[%clk 0:02:59]} 9. c3 {[%clk 0:03:01]}  f5 {[%clk 0:02:59]} 10. dxe5 {[%clk 0:02:48]}  Ndxe5 {[%clk 0:02:59]} 11. Qd5+ {[%clk 0:02:47]}  Kh8 {[%clk 0:02:58]} 12. Rd1 {[%clk 0:02:45]}  Qe7 {[%clk 0:02:57]} 13. Nd4 {[%clk 0:02:26]}  Nxd4 {[%clk 0:02:44]} 14. cxd4 {[%clk 0:02:24]}  Nc6 {[%clk 0:02:38]} 15. Nc3 {[%clk 0:02:14]}  g5 {[%clk 0:02:25]} 16. Qb3 {[%clk 0:02:06]}  f4 {[%clk 0:02:21]} 17. Nd5 {[%clk 0:01:57]}  Qf7 {[%clk 0:02:20]} 18. exf4 {[%clk 0:01:47]}  Nxd4 {[%clk 0:02:14]} 19. Rxd4 {[%clk 0:01:47]}  Bxd4 {[%clk 0:02:14]} 20. Bc4 {[%clk 0:01:46]}  Be6 {[%clk 0:02:12]} 21. Rd1 {[%clk 0:01:35]}  Bg7 {[%clk 0:02:07]} 22. f5 {[%clk 0:01:22]}  Qxf5 {[%clk 0:02:02]} 23. Nxc7 {[%clk 0:01:19]}  Qxf2+ {[%clk 0:02:00]} 24. Kh1 {[%clk 0:01:20]}  Bxc4 {[%clk 0:01:47]} 25. Qxc4 {[%clk 0:01:21]}  Rac8 {[%clk 0:01:47]} 26. Bxd6 {[%clk 0:01:21]}  Rfd8 {[%clk 0:01:36]} 27. Qb3 {[%clk 0:01:03]}  Rxd6 {[%clk 0:01:32]} 28. Rxd6 {[%clk 0:01:01]}  Qf1+ {[%clk 0:01:29]} 29. Kh2 {[%clk 0:01:01]}  Qf4+ {[%clk 0:01:20]} 30. Qg3 {[%clk 0:01:00]}  Qxg3+ {[%clk 0:01:20]} 0-1


[Site "https://www.chess.com"]

[Event "Titled Tuesday Blitz December 20 Early 2022"]
[White "GuessChess_game"]
[Black "Felix-Rose"]
[WhiteElo "2424"]
[BlackElo "2299"]
[Result "0-1"]
[Round "05"]
[TimeControl "180+2"]
[Date "2022.12.20"]
[WhiteClock "0:02:43"]
[BlackClock "0:02:50"]

1. d4 {[%clk 0:03:00]}  d5 {[%clk 0:02:58]} 2. Nf3 {[%clk 0:03:00]}  Nf6 {[%clk 0:02:58]} 3. c4 {[%clk 0:03:00]}  e6 {[%clk 0:02:58]} 4. Nc3 {[%clk 0:02:59]}  Be7 {[%clk 0:02:58]} 5. Bg5 {[%clk 0:02:58]}  Nbd7 {[%clk 0:02:57]} 6. e3 {[%clk 0:02:58]}  h6 {[%clk 0:02:58]} 7. Bh4 {[%clk 0:02:57]}  O-O {[%clk 0:02:58]} 8. Rc1 {[%clk 0:02:57]}  c5 {[%clk 0:02:58]} 9. cxd5 {[%clk 0:02:51]}  Nxd5 {[%clk 0:02:58]} 10. Be2 {[%clk 0:02:52]}  Bxh4 {[%clk 0:02:55]} 11. O-O {[%clk 0:02:46]}  Nxc3 {[%clk 0:02:52]} 12. Rxc3 {[%clk 0:02:45]}  cxd4 {[%clk 0:02:51]} 13. Qxd4 {[%clk 0:02:45]}  Bf6 {[%clk 0:02:51]} 14. Qa4 {[%clk 0:02:43]}  Bxc3 {[%clk 0:02:50]} 0-1


[Site "https://www.chess.com"]

[Event "Titled Tuesday Blitz December 20 Early 2022"]
[White "Hsu, Li Yang"]
[Black "TigrVShlyape"]
[WhiteFideId "5800080"]
[WhiteElo "2427"]
[BlackElo "2914"]
[Result "0-1"]
[Round "05"]
[TimeControl "180+2"]
[Date "2022.12.20"]
[WhiteClock "0:00:04"]
[BlackClock "0:00:47"]

1. Nf3 {[%clk 0:03:00]}  Nf6 {[%clk 0:02:52]} 2. g3 {[%clk 0:03:00]}  g6 {[%clk 0:02:51]} 3. Bg2 {[%clk 0:03:00]}  Bg7 {[%clk 0:02:52]} 4. O-O {[%clk 0:03:01]}  O-O {[%clk 0:02:52]} 5. d4 {[%clk 0:03:02]}  d5 {[%clk 0:02:49]} 6. c4 {[%clk 0:03:01]}  c6 {[%clk 0:02:49]} 7. cxd5 {[%clk 0:03:02]}  cxd5 {[%clk 0:02:49]} 8. Nc3 {[%clk 0:03:03]}  e6 {[%clk 0:02:48]} 9. Ne5 {[%clk 0:03:02]}  Nfd7 {[%clk 0:02:46]} 10. Bf4 {[%clk 0:02:56]}  Nxe5 {[%clk 0:02:25]} 11. Bxe5 {[%clk 0:02:57]}  Bxe5 {[%clk 0:02:25]} 12. dxe5 {[%clk 0:02:58]}  Nc6 {[%clk 0:02:25]} 13. f4 {[%clk 0:02:23]}  Qb6+ {[%clk 0:02:24]} 14. Kh1 {[%clk 0:02:22]}  Qxb2 {[%clk 0:02:23]} 15. Qd3 {[%clk 0:01:54]}  Qb4 {[%clk 0:01:40]} 16. Rfb1 {[%clk 0:01:45]}  Qe7 {[%clk 0:01:39]} 17. a4 {[%clk 0:01:42]}  b6 {[%clk 0:01:35]} 18. e4 {[%clk 0:01:00]}  d4 {[%clk 0:01:33]} 19. Nb5 {[%clk 0:01:00]}  Ba6 {[%clk 0:01:33]} 20. Rc1 {[%clk 0:00:58]}  Rac8 {[%clk 0:01:27]} 21. Qd2 {[%clk 0:00:55]}  Bxb5 {[%clk 0:01:26]} 22. axb5 {[%clk 0:00:56]}  Na5 {[%clk 0:01:26]} 23. Qd3 {[%clk 0:00:17]}  Rxc1+ {[%clk 0:01:20]} 24. Rxc1 {[%clk 0:00:18]}  Rd8 {[%clk 0:01:18]} 25. h4 {[%clk 0:00:18]}  h5 {[%clk 0:01:16]} 26. Kh2 {[%clk 0:00:18]}  Nb7 {[%clk 0:01:14]} 27. Rc4 {[%clk 0:00:14]}  Nc5 {[%clk 0:01:14]} 28. Qd2 {[%clk 0:00:14]}  d3 {[%clk 0:01:14]} 29. Bf1 {[%clk 0:00:12]}  Nb3 {[%clk 0:01:05]} 30. Qd1 {[%clk 0:00:11]}  d2 {[%clk 0:01:05]} 31. f5 {[%clk 0:00:07]}  exf5 {[%clk 0:01:03]} 32. exf5 {[%clk 0:00:07]}  Nc5 {[%clk 0:00:51]} 33. fxg6 {[%clk 0:00:07]}  fxg6 {[%clk 0:00:49]} 34. Rc2 {[%clk 0:00:03]}  Qxe5 {[%clk 0:00:49]} 35. Rxd2 {[%clk 0:00:03]}  Rxd2+ {[%clk 0:00:48]} 36. Qxd2 {[%clk 0:00:04]}  Qxg3+ {[%clk 0:00:47]} 0-1


[Site "https://www.chess.com"]

[Event "Titled Tuesday Blitz December 20 Early 2022"]
[White "Ibarra Jerez, Jose Carlos"]
[Black "DefiantChair"]
[WhiteFideId "2226332"]
[WhiteElo "2563"]
[BlackElo "2631"]
[Result "1-0"]
[Round "05"]
[TimeControl "180+2"]
[Date "2022.12.20"]
[WhiteClock "0:00:56"]
[BlackClock "0:00:17"]

1. e4 {[%clk 0:02:59]}  e5 {[%clk 0:02:59]} 2. Nf3 {[%clk 0:02:58]}  Nc6 {[%clk 0:02:59]} 3. Bb5 {[%clk 0:02:58]}  Nf6 {[%clk 0:02:59]} 4. O-O {[%clk 0:02:56]}  Nxe4 {[%clk 0:02:59]} 5. d4 {[%clk 0:02:56]}  Nd6 {[%clk 0:02:58]} 6. dxe5 {[%clk 0:02:50]}  Nxb5 {[%clk 0:02:59]} 7. a4 {[%clk 0:02:51]}  Nbd4 {[%clk 0:02:59]} 8. Nxd4 {[%clk 0:02:51]}  d5 {[%clk 0:02:59]} 9. Nxc6 {[%clk 0:02:26]}  bxc6 {[%clk 0:03:00]} 10. Qd3 {[%clk 0:02:24]}  a5 {[%clk 0:02:57]} 11. Re1 {[%clk 0:02:22]}  Qd7 {[%clk 0:02:55]} 12. Nd2 {[%clk 0:02:19]}  Qf5 {[%clk 0:02:48]} 13. Qc3 {[%clk 0:02:18]}  Ra6 {[%clk 0:02:47]} 14. Qg3 {[%clk 0:02:08]}  Be6 {[%clk 0:02:25]} 15. Nf3 {[%clk 0:02:05]}  Qxc2 {[%clk 0:02:17]} 16. Nd4 {[%clk 0:02:02]}  Qg6 {[%clk 0:02:16]} 17. Qe3 {[%clk 0:01:42]}  Bc5 {[%clk 0:02:04]} 18. Bd2 {[%clk 0:01:42]}  O-O {[%clk 0:01:59]} 19. Bc3 {[%clk 0:01:34]}  Bb4 {[%clk 0:01:49]} 20. Bxb4 {[%clk 0:01:32]}  axb4 {[%clk 0:01:50]} 21. Nb3 {[%clk 0:01:33]}  Rfa8 {[%clk 0:01:45]} 22. Nc5 {[%clk 0:01:32]}  Ra5 {[%clk 0:01:43]} 23. b3 {[%clk 0:01:33]}  Bh3 {[%clk 0:01:30]} 24. g3 {[%clk 0:01:33]}  Qf5 {[%clk 0:01:13]} 25. Rac1 {[%clk 0:01:30]}  Bg4 {[%clk 0:01:03]} 26. Qd4 {[%clk 0:01:23]}  Bf3 {[%clk 0:01:03]} 27. Re3 {[%clk 0:01:23]}  g5 {[%clk 0:00:54]} 28. e6 {[%clk 0:01:15]}  fxe6 {[%clk 0:00:50]} 29. Nxe6 {[%clk 0:01:15]}  Qf7 {[%clk 0:00:35]} 30. Nxg5 {[%clk 0:01:13]}  c5 {[%clk 0:00:35]} 31. Nxf7 {[%clk 0:01:07]}  cxd4 {[%clk 0:00:35]} 32. Rxf3 {[%clk 0:01:08]}  c5 {[%clk 0:00:34]} 33. Ne5 {[%clk 0:01:04]}  R8a6 {[%clk 0:00:31]} 34. Nd7 {[%clk 0:00:59]}  c4 {[%clk 0:00:21]} 35. bxc4 {[%clk 0:00:59]}  Rc6 {[%clk 0:00:20]} 36. c5 {[%clk 0:00:54]}  Rc7 {[%clk 0:00:18]} 37. Nf6+ {[%clk 0:00:53]}  Kg7 {[%clk 0:00:18]} 38. Nxd5 {[%clk 0:00:54]}  Rcxc5 {[%clk 0:00:17]} 39. Rxc5 {[%clk 0:00:55]}  Rxc5 {[%clk 0:00:16]} 40. Nxb4 {[%clk 0:00:56]}  Rc1+ {[%clk 0:00:16]} 41. Kg2 {[%clk 0:00:56]}  Ra1 {[%clk 0:00:17]} 42. Rf4 {[%clk 0:00:56]} 1-0


[Site "https://www.chess.com"]

[Event "Titled Tuesday Blitz December 20 Early 2022"]
[White "Imperial, Genghis"]
[Black "Agh, Miklos"]
[WhiteFideId "5230403"]
[BlackFideId "703176"]
[WhiteElo "1812"]
[BlackElo "2152"]
[Result "1-0"]
[Round "05"]
[TimeControl "180+2"]
[Date "2022.12.20"]
[WhiteClock "0:01:20"]
[BlackClock "0:01:00"]

1. e4 {[%clk 0:02:55]}  e5 {[%clk 0:03:00]} 2. Nf3 {[%clk 0:02:56]}  Nc6 {[%clk 0:03:00]} 3. Nc3 {[%clk 0:02:56]}  Nf6 {[%clk 0:03:01]} 4. Bb5 {[%clk 0:02:56]}  Bb4 {[%clk 0:03:01]} 5. O-O {[%clk 0:02:50]}  O-O {[%clk 0:02:58]} 6. Bxc6 {[%clk 0:02:49]}  bxc6 {[%clk 0:02:52]} 7. Nxe5 {[%clk 0:02:46]}  Bxc3 {[%clk 0:02:49]} 8. dxc3 {[%clk 0:02:45]}  Nxe4 {[%clk 0:02:49]} 9. Nd3 {[%clk 0:02:33]}  d6 {[%clk 0:02:45]} 10. Re1 {[%clk 0:02:31]}  Re8 {[%clk 0:02:13]} 11. Qf3 {[%clk 0:02:25]}  d5 {[%clk 0:02:03]} 12. Bf4 {[%clk 0:02:22]}  Be6 {[%clk 0:01:56]} 13. Rad1 {[%clk 0:02:20]}  Rb8 {[%clk 0:01:47]} 14. h3 {[%clk 0:02:16]}  c5 {[%clk 0:01:40]} 15. Qe3 {[%clk 0:02:02]}  c4 {[%clk 0:01:38]} 16. Nb4 {[%clk 0:01:40]}  Qd7 {[%clk 0:01:30]} 17. Qxa7 {[%clk 0:01:33]}  Qb5 {[%clk 0:01:03]} 18. Qxc7 {[%clk 0:01:26]}  Rec8 {[%clk 0:01:02]} 19. Qe5 {[%clk 0:01:24]}  Rb7 {[%clk 0:01:00]} 20. Nxd5 {[%clk 0:01:20]} 1-0


[Site "https://www.chess.com"]

[Event "Titled Tuesday Blitz December 20 Early 2022"]
[White "InitiatingASC"]
[Black "cancrushyou"]
[WhiteElo "2412"]
[BlackElo "2530"]
[Result "1-0"]
[Round "05"]
[TimeControl "180+2"]
[Date "2022.12.20"]
[WhiteClock "0:00:04"]
[BlackClock "0:00:23"]

1. Nf3 {[%clk 0:02:59]}  d5 {[%clk 0:03:00]} 2. g3 {[%clk 0:02:58]}  Nf6 {[%clk 0:03:00]} 3. Bg2 {[%clk 0:02:59]}  e6 {[%clk 0:03:01]} 4. O-O {[%clk 0:03:00]}  Be7 {[%clk 0:03:01]} 5. c4 {[%clk 0:02:58]}  O-O {[%clk 0:03:02]} 6. b3 {[%clk 0:02:58]}  b6 {[%clk 0:03:01]} 7. Bb2 {[%clk 0:02:58]}  c5 {[%clk 0:03:00]} 8. d4 {[%clk 0:02:58]}  Bb7 {[%clk 0:02:55]} 9. dxc5 {[%clk 0:02:57]}  Bxc5 {[%clk 0:02:55]} 10. cxd5 {[%clk 0:02:58]}  Nxd5 {[%clk 0:02:50]} 11. Nc3 {[%clk 0:02:58]}  Nxc3 {[%clk 0:02:42]} 12. Bxc3 {[%clk 0:02:57]}  Qe7 {[%clk 0:02:43]} 13. Qc1 {[%clk 0:02:43]}  Nd7 {[%clk 0:02:37]} 14. Rd1 {[%clk 0:02:41]}  Nf6 {[%clk 0:02:35]} 15. Qg5 {[%clk 0:02:38]}  h6 {[%clk 0:02:28]} 16. Bxf6 {[%clk 0:02:29]}  Qxf6 {[%clk 0:02:24]} 17. Qxf6 {[%clk 0:02:27]}  gxf6 {[%clk 0:02:23]} 18. Nd2 {[%clk 0:02:27]}  Bxg2 {[%clk 0:02:20]} 19. Kxg2 {[%clk 0:02:27]}  Rfd8 {[%clk 0:02:19]} 20. Ne4 {[%clk 0:02:25]}  Be7 {[%clk 0:02:19]} 21. Kf3 {[%clk 0:02:02]}  f5 {[%clk 0:02:19]} 22. Nd2 {[%clk 0:01:57]}  b5 {[%clk 0:02:10]} 23. Nf1 {[%clk 0:01:51]}  a5 {[%clk 0:02:07]} 24. Rac1 {[%clk 0:01:43]}  a4 {[%clk 0:02:02]} 25. Ne3 {[%clk 0:01:21]}  Rxd1 {[%clk 0:01:58]} 26. Rxd1 {[%clk 0:01:19]}  axb3 {[%clk 0:01:55]} 27. axb3 {[%clk 0:01:19]}  Ra2 {[%clk 0:01:46]} 28. Rd7 {[%clk 0:01:11]}  Bf8 {[%clk 0:01:40]} 29. Rb7 {[%clk 0:01:07]}  b4 {[%clk 0:01:36]} 30. Nc4 {[%clk 0:01:07]}  f6 {[%clk 0:01:27]} 31. e3 {[%clk 0:00:55]}  Ra1 {[%clk 0:01:25]} 32. Rb6 {[%clk 0:00:41]}  Kf7 {[%clk 0:01:17]} 33. h4 {[%clk 0:00:33]}  h5 {[%clk 0:01:08]} 34. Rb7+ {[%clk 0:00:31]}  Kg6 {[%clk 0:01:09]} 35. Rb6 {[%clk 0:00:28]}  Rb1 {[%clk 0:01:07]} 36. Rxe6 {[%clk 0:00:20]}  Rxb3 {[%clk 0:01:06]} 37. Ne5+ {[%clk 0:00:19]}  Kg7 {[%clk 0:01:07]} 38. Nd7 {[%clk 0:00:14]}  f4 {[%clk 0:00:36]} 39. Nxf8 {[%clk 0:00:12]}  fxe3 {[%clk 0:00:29]} 40. Rxe3 {[%clk 0:00:05]}  Rxe3+ {[%clk 0:00:24]} 41. Kxe3 {[%clk 0:00:05]}  Kxf8 {[%clk 0:00:24]} 42. Kd3 {[%clk 0:00:06]}  Ke7 {[%clk 0:00:25]} 43. Kc4 {[%clk 0:00:07]}  Ke6 {[%clk 0:00:26]} 44. Kxb4 {[%clk 0:00:08]}  Ke5 {[%clk 0:00:26]} 45. Kc5 {[%clk 0:00:06]}  Ke4 {[%clk 0:00:26]} 46. Kd6 {[%clk 0:00:03]}  Kf3 {[%clk 0:00:25]} 47. Ke6 {[%clk 0:00:03]}  Kxf2 {[%clk 0:00:25]} 48. Kxf6 {[%clk 0:00:03]}  Kxg3 {[%clk 0:00:23]} 49. Kg5 {[%clk 0:00:04]}  Kf3 {[%clk 0:00:23]} 50. Kxh5 {[%clk 0:00:04]}  Kf4 {[%clk 0:00:23]} 51. Kg6 {[%clk 0:00:04]} 1-0


[Site "https://www.chess.com"]

[Event "Titled Tuesday Blitz December 20 Early 2022"]
[White "Iskusnyh, Sergei"]
[Black "De Firmian, Nick"]
[WhiteFideId "4120027"]
[BlackFideId "2000105"]
[WhiteElo "2440"]
[BlackElo "2460"]
[Result "1-0"]
[Round "05"]
[TimeControl "180+2"]
[Date "2022.12.20"]
[WhiteClock "0:00:41"]
[BlackClock "0:00:17"]

1. d4 {[%clk 0:03:00]}  Nf6 {[%clk 0:02:59]} 2. c4 {[%clk 0:03:00]}  g6 {[%clk 0:02:59]} 3. g3 {[%clk 0:02:59]}  c6 {[%clk 0:02:59]} 4. Bg2 {[%clk 0:02:59]}  d5 {[%clk 0:03:00]} 5. e3 {[%clk 0:03:00]}  Bg7 {[%clk 0:03:00]} 6. Ne2 {[%clk 0:03:00]}  O-O {[%clk 0:03:00]} 7. O-O {[%clk 0:03:00]}  dxc4 {[%clk 0:03:00]} 8. Na3 {[%clk 0:02:59]}  Be6 {[%clk 0:02:56]} 9. Qc2 {[%clk 0:02:58]}  Na6 {[%clk 0:02:14]} 10. Bd2 {[%clk 0:02:52]}  Bf5 {[%clk 0:01:51]} 11. e4 {[%clk 0:02:43]}  Bg4 {[%clk 0:01:51]} 12. f3 {[%clk 0:02:40]}  Be6 {[%clk 0:01:52]} 13. Nxc4 {[%clk 0:02:35]}  Nd7 {[%clk 0:01:48]} 14. Rfd1 {[%clk 0:02:01]}  Nb6 {[%clk 0:01:47]} 15. Na5 {[%clk 0:01:58]}  Bc8 {[%clk 0:01:20]} 16. Be1 {[%clk 0:01:54]}  Nc7 {[%clk 0:01:13]} 17. b4 {[%clk 0:01:52]}  e6 {[%clk 0:01:01]} 18. Rac1 {[%clk 0:01:51]}  Qe7 {[%clk 0:01:01]} 19. a3 {[%clk 0:01:50]}  Nb5 {[%clk 0:01:01]} 20. Qb3 {[%clk 0:01:46]}  Rd8 {[%clk 0:00:59]} 21. Bf2 {[%clk 0:01:45]}  h5 {[%clk 0:00:56]} 22. h4 {[%clk 0:01:28]}  Nd6 {[%clk 0:00:55]} 23. Nf4 {[%clk 0:01:22]}  Ne8 {[%clk 0:00:52]} 24. Be3 {[%clk 0:01:20]}  Nf6 {[%clk 0:00:52]} 25. Nd3 {[%clk 0:01:19]}  Nbd7 {[%clk 0:00:50]} 26. Bg5 {[%clk 0:01:16]}  Kh7 {[%clk 0:00:47]} 27. e5 {[%clk 0:01:15]}  Qf8 {[%clk 0:00:32]} 28. exf6 {[%clk 0:01:15]}  Nxf6 {[%clk 0:00:31]} 29. Ne5 {[%clk 0:01:12]}  Nd5 {[%clk 0:00:30]} 30. Bxd8 {[%clk 0:01:10]}  Qxd8 {[%clk 0:00:28]} 31. Nxf7 {[%clk 0:01:10]}  Qf6 {[%clk 0:00:28]} 32. Ng5+ {[%clk 0:01:09]}  Kg8 {[%clk 0:00:27]} 33. f4 {[%clk 0:01:09]}  Ne7 {[%clk 0:00:25]} 34. Kh2 {[%clk 0:01:04]}  Nf5 {[%clk 0:00:25]} 35. Qd3 {[%clk 0:00:58]}  Nh6 {[%clk 0:00:24]} 36. Bh3 {[%clk 0:00:57]}  Nf5 {[%clk 0:00:24]} 37. Bxf5 {[%clk 0:00:56]}  exf5 {[%clk 0:00:25]} 38. Qc4+ {[%clk 0:00:55]}  Kh8 {[%clk 0:00:24]} 39. Re1 {[%clk 0:00:54]}  Bd7 {[%clk 0:00:24]} 40. Re5 {[%clk 0:00:53]}  b5 {[%clk 0:00:21]} 41. Qf7 {[%clk 0:00:52]}  Qd6 {[%clk 0:00:17]} 42. Re7 {[%clk 0:00:49]}  Qxd4 {[%clk 0:00:17]} 43. Rxd7 {[%clk 0:00:45]}  Qf2+ {[%clk 0:00:17]} 44. Kh3 {[%clk 0:00:44]}  Rg8 {[%clk 0:00:17]} 45. Qxg6 {[%clk 0:00:41]} 1-0


[Site "https://www.chess.com"]

[Event "Titled Tuesday Blitz December 20 Early 2022"]
[White "Jannat Makan, Ali Reza"]
[Black "RamonManon0g"]
[WhiteFideId "22583556"]
[WhiteElo "1621"]
[BlackElo "2372"]
[Result "0-1"]
[Round "05"]
[TimeControl "180+2"]
[Date "2022.12.20"]
[WhiteClock "0:00:03"]
[BlackClock "0:01:08"]

1. e4 {[%clk 0:02:16]}  c5 {[%clk 0:02:59]} 2. Nf3 {[%clk 0:02:16]}  d6 {[%clk 0:02:59]} 3. d4 {[%clk 0:02:16]}  cxd4 {[%clk 0:03:00]} 4. Nxd4 {[%clk 0:02:17]}  Nf6 {[%clk 0:03:01]} 5. Nc3 {[%clk 0:02:14]}  a6 {[%clk 0:03:01]} 6. Be3 {[%clk 0:02:14]}  e5 {[%clk 0:03:01]} 7. Nb3 {[%clk 0:02:13]}  Be7 {[%clk 0:02:59]} 8. f3 {[%clk 0:02:14]}  h5 {[%clk 0:02:59]} 9. Qd2 {[%clk 0:02:10]}  O-O {[%clk 0:03:00]} 10. O-O-O {[%clk 0:02:10]}  Be6 {[%clk 0:03:00]} 11. Be2 {[%clk 0:02:04]}  Nbd7 {[%clk 0:03:00]} 12. Kb1 {[%clk 0:02:01]}  b5 {[%clk 0:03:00]} 13. Nd5 {[%clk 0:01:59]}  Nxd5 {[%clk 0:03:00]} 14. exd5 {[%clk 0:01:59]}  Bf5 {[%clk 0:03:01]} 15. Na5 {[%clk 0:01:59]}  Nf6 {[%clk 0:02:57]} 16. Nc6 {[%clk 0:01:58]}  Qd7 {[%clk 0:02:57]} 17. h3 {[%clk 0:01:39]}  Rfc8 {[%clk 0:02:56]} 18. g4 {[%clk 0:01:20]}  Bg6 {[%clk 0:02:41]} 19. Nxe7+ {[%clk 0:01:15]}  Qxe7 {[%clk 0:02:41]} 20. Bd3 {[%clk 0:01:13]}  e4 {[%clk 0:02:34]} 21. fxe4 {[%clk 0:01:03]}  Nxe4 {[%clk 0:02:35]} 22. Qg2 {[%clk 0:00:43]}  h4 {[%clk 0:02:33]} 23. Bd4 {[%clk 0:00:41]}  Ng3 {[%clk 0:02:04]} 24. Rhe1 {[%clk 0:00:41]}  Qg5 {[%clk 0:02:03]} 25. Be3 {[%clk 0:00:34]}  Qf6 {[%clk 0:02:01]} 26. Bxg6 {[%clk 0:00:33]}  Qxg6 {[%clk 0:02:01]} 27. Bf4 {[%clk 0:00:29]}  Nh5 {[%clk 0:01:52]} 28. Be3 {[%clk 0:00:23]}  Nf6 {[%clk 0:01:50]} 29. Bd4 {[%clk 0:00:23]}  Rc4 {[%clk 0:01:46]} 30. Bxf6 {[%clk 0:00:22]}  Qxf6 {[%clk 0:01:46]} 31. Rf1 {[%clk 0:00:18]}  Qg6 {[%clk 0:01:43]} 32. Rde1 {[%clk 0:00:14]}  Rac8 {[%clk 0:01:43]} 33. Re2 {[%clk 0:00:15]}  b4 {[%clk 0:01:39]} 34. b3 {[%clk 0:00:14]}  Rc3 {[%clk 0:01:38]} 35. Kb2 {[%clk 0:00:15]}  a5 {[%clk 0:01:33]} 36. Qf2 {[%clk 0:00:13]}  Rxh3 {[%clk 0:01:28]} 37. Rfe1 {[%clk 0:00:13]}  Rg3 {[%clk 0:01:19]} 38. Re8+ {[%clk 0:00:12]}  Rxe8 {[%clk 0:01:19]} 39. Rxe8+ {[%clk 0:00:13]}  Kh7 {[%clk 0:01:20]} 40. Qf4 {[%clk 0:00:07]}  Rxg4 {[%clk 0:01:13]} 41. Qf2 {[%clk 0:00:05]}  h3 {[%clk 0:01:10]} 42. Rc8 {[%clk 0:00:03]}  Qf6+ {[%clk 0:01:07]} 43. Qxf6 {[%clk 0:00:03]}  gxf6 {[%clk 0:01:08]} 0-1


[Site "https://www.chess.com"]

[Event "Titled Tuesday Blitz December 20 Early 2022"]
[White "Klose, Eli"]
[Black "Hansch, Karsten"]
[WhiteFideId "16242955"]
[BlackFideId "24692239"]
[WhiteElo "1519"]
[BlackElo "2248"]
[Result "1-0"]
[Round "05"]
[TimeControl "180+2"]
[Date "2022.12.20"]
[WhiteClock "0:02:21"]
[BlackClock "0:01:47"]

1. e4 {[%clk 0:02:56]}  c5 {[%clk 0:02:59]} 2. Nc3 {[%clk 0:02:55]}  Nc6 {[%clk 0:02:57]} 3. d3 {[%clk 0:02:55]}  g6 {[%clk 0:02:58]} 4. g3 {[%clk 0:02:54]}  Bg7 {[%clk 0:02:58]} 5. Bg2 {[%clk 0:02:55]}  e6 {[%clk 0:02:58]} 6. Be3 {[%clk 0:02:54]}  d6 {[%clk 0:02:58]} 7. Qd2 {[%clk 0:02:55]}  Rb8 {[%clk 0:02:58]} 8. Nge2 {[%clk 0:02:53]}  b5 {[%clk 0:02:58]} 9. O-O {[%clk 0:02:50]}  a5 {[%clk 0:02:58]} 10. f4 {[%clk 0:02:48]}  Nge7 {[%clk 0:02:56]} 11. Rae1 {[%clk 0:02:47]}  O-O {[%clk 0:02:55]} 12. f5 {[%clk 0:02:47]}  exf5 {[%clk 0:02:49]} 13. exf5 {[%clk 0:02:48]}  Bxf5 {[%clk 0:02:47]} 14. Rxf5 {[%clk 0:02:47]}  gxf5 {[%clk 0:02:47]} 15. Bh6 {[%clk 0:02:47]}  Bxh6 {[%clk 0:02:34]} 16. Qxh6 {[%clk 0:02:45]}  Nd4 {[%clk 0:02:34]} 17. Nf4 {[%clk 0:02:24]}  Ng6 {[%clk 0:02:18]} 18. Nh5 {[%clk 0:02:21]}  Qf6 {[%clk 0:01:47]} 1-0


[Site "https://www.chess.com"]